[Event "Titled Tuesday Blitz June 27 Early 2023"]
[White "Mateus, Alejandro"]
[Black "Poormosavi, Seyed Kian"]
[WhiteFideId "4402529"]
[BlackFideId "12585807"]
[WhiteElo "2413"]
[BlackElo "2589"]
[Result "1/2-1/2"]
[Round "4"]
[TimeControl "180+2"]
[Date "2023.06.27"]
[WhiteClock "0:00:03"]
[BlackClock "0:00:11"]
[Board "143"]

1. e4 {[%clk 0:03:00]}  c6 {[%clk 0:02:59]} 2. d4 {[%clk 0:02:59]}  d5 {[%clk 0:02:59]} 3. Nc3 {[%clk 0:02:59]}  dxe4 {[%clk 0:02:59]} 4. Nxe4 {[%clk 0:03:00]}  Nf6 {[%clk 0:03:00]} 5. Nxf6+ {[%clk 0:03:00]}  exf6 {[%clk 0:03:01]} 6. c3 {[%clk 0:03:00]}  g6 {[%clk 0:03:01]} 7. Bc4 {[%clk 0:02:59]}  Bg7 {[%clk 0:02:55]} 8. Nf3 {[%clk 0:02:56]}  O-O {[%clk 0:02:55]} 9. O-O {[%clk 0:02:54]}  Nd7 {[%clk 0:02:56]} 10. Re1 {[%clk 0:02:54]}  Nb6 {[%clk 0:02:56]} 11. Bb3 {[%clk 0:02:53]}  a5 {[%clk 0:02:55]} 12. a4 {[%clk 0:02:52]}  Nd5 {[%clk 0:02:55]} 13. h3 {[%clk 0:02:43]}  Be6 {[%clk 0:02:53]} 14. Bd2 {[%clk 0:02:14]}  Re8 {[%clk 0:02:53]} 15. Bc4 {[%clk 0:02:06]}  Qd7 {[%clk 0:02:48]} 16. Qb3 {[%clk 0:02:04]}  Rab8 {[%clk 0:02:46]} 17. Re2 {[%clk 0:02:00]}  b5 {[%clk 0:02:43]} 18. axb5 {[%clk 0:01:57]}  cxb5 {[%clk 0:02:44]} 19. Bxd5 {[%clk 0:01:54]}  Bxd5 {[%clk 0:02:45]} 20. Rxe8+ {[%clk 0:01:54]}  Rxe8 {[%clk 0:02:46]} 21. Qc2 {[%clk 0:01:51]}  Bxf3 {[%clk 0:02:44]} 22. gxf3 {[%clk 0:01:52]}  Qxh3 {[%clk 0:02:33]} 23. Qd3 {[%clk 0:01:52]}  a4 {[%clk 0:02:05]} 24. Qxb5 {[%clk 0:01:42]}  Rd8 {[%clk 0:02:06]} 25. Qd3 {[%clk 0:01:39]}  Rd5 {[%clk 0:02:01]} 26. Qf1 {[%clk 0:01:15]}  Qxf3 {[%clk 0:02:00]} 27. Qg2 {[%clk 0:01:12]}  Qh5 {[%clk 0:01:07]} 28. Re1 {[%clk 0:01:05]}  Bf8 {[%clk 0:01:00]} 29. Bf4 {[%clk 0:01:01]}  Kg7 {[%clk 0:00:53]} 30. f3 {[%clk 0:01:00]}  a3 {[%clk 0:00:51]} 31. bxa3 {[%clk 0:00:58]}  Bxa3 {[%clk 0:00:50]} 32. Re8 {[%clk 0:00:52]}  Rf5 {[%clk 0:00:49]} 33. Qg3 {[%clk 0:00:41]}  g5 {[%clk 0:00:45]} 34. Re4 {[%clk 0:00:35]}  Rxf4 {[%clk 0:00:41]} 35. Rxf4 {[%clk 0:00:29]}  Bd6 {[%clk 0:00:39]} 36. Rh4 {[%clk 0:00:26]}  Qxh4 {[%clk 0:00:25]} 37. Qxd6 {[%clk 0:00:26]}  Qe1+ {[%clk 0:00:26]} 38. Kg2 {[%clk 0:00:26]}  Qxc3 {[%clk 0:00:26]} 39. d5 {[%clk 0:00:25]}  h5 {[%clk 0:00:27]} 40. Qc6 {[%clk 0:00:21]}  Qd2+ {[%clk 0:00:27]} 41. Kg1 {[%clk 0:00:21]}  Qe1+ {[%clk 0:00:27]} 42. Kg2 {[%clk 0:00:21]}  h4 {[%clk 0:00:26]} 43. d6 {[%clk 0:00:20]}  Qg3+ {[%clk 0:00:26]} 44. Kh1 {[%clk 0:00:18]}  h3 {[%clk 0:00:26]} 45. f4 {[%clk 0:00:14]}  g4 {[%clk 0:00:25]} 46. d7 {[%clk 0:00:13]}  Qe1+ {[%clk 0:00:25]} 47. Kh2 {[%clk 0:00:12]}  Qf2+ {[%clk 0:00:25]} 48. Kh1 {[%clk 0:00:12]}  h2 {[%clk 0:00:20]} 49. Qxf6+ {[%clk 0:00:10]}  Kxf6 {[%clk 0:00:18]} 50. d8=Q+ {[%clk 0:00:11]}  Ke6 {[%clk 0:00:19]} 51. Qe8+ {[%clk 0:00:10]}  Kf5 {[%clk 0:00:18]} 52. Qxf7+ {[%clk 0:00:07]}  Ke4 {[%clk 0:00:19]} 53. Qe6+ {[%clk 0:00:07]}  Kxf4 {[%clk 0:00:20]} 54. Qf6+ {[%clk 0:00:06]}  Kg3 {[%clk 0:00:20]} 55. Qe5+ {[%clk 0:00:04]}  Qf4 {[%clk 0:00:13]} 56. Qe1+ {[%clk 0:00:04]}  Kh3 {[%clk 0:00:14]} 57. Qg3+ {[%clk 0:00:03]}  Qxg3 {[%clk 0:00:11]} 1/2-1/2


[Site "https://www.chess.com"]

[Event "Titled Tuesday Blitz June 27 Early 2023"]
[White "Williams, Simon K"]
[Black "Mrudul Dehankar"]
[WhiteFideId "404454"]
[BlackFideId "25096990"]
[WhiteElo "2589"]
[BlackElo "2411"]
[Result "1-0"]
[Round "4"]
[TimeControl "180+2"]
[Date "2023.06.27"]
[WhiteClock "0:00:32"]
[BlackClock "0:00:00"]
[Board "144"]

1. e4 {[%clk 0:03:00]}  c6 {[%clk 0:02:55]} 2. Bc4 {[%clk 0:02:59]}  d5 {[%clk 0:02:53]} 3. Bb3 {[%clk 0:02:59]}  dxe4 {[%clk 0:02:45]} 4. Qh5 {[%clk 0:02:58]}  g6 {[%clk 0:02:27]} 5. Qh4 {[%clk 0:02:51]}  Nf6 {[%clk 0:02:23]} 6. Nc3 {[%clk 0:02:51]}  Bf5 {[%clk 0:02:07]} 7. f3 {[%clk 0:02:50]}  exf3 {[%clk 0:01:57]} 8. Nxf3 {[%clk 0:02:48]}  Qb6 {[%clk 0:01:57]} 9. d4 {[%clk 0:02:46]}  Nbd7 {[%clk 0:01:56]} 10. O-O {[%clk 0:02:30]}  O-O-O {[%clk 0:01:55]} 11. Kh1 {[%clk 0:02:17]}  e6 {[%clk 0:01:44]} 12. Ng5 {[%clk 0:02:08]}  Rg8 {[%clk 0:00:36]} 13. Nxf7 {[%clk 0:02:07]}  Re8 {[%clk 0:00:34]} 14. Na4 {[%clk 0:01:34]}  Qa5 {[%clk 0:00:24]} 15. Bf4 {[%clk 0:01:23]}  Rg7 {[%clk 0:00:18]} 16. Nd6+ {[%clk 0:01:18]}  Bxd6 {[%clk 0:00:14]} 17. Bxd6 {[%clk 0:01:19]}  Ne4 {[%clk 0:00:13]} 18. Bf4 {[%clk 0:00:52]}  g5 {[%clk 0:00:11]} 19. Qh5 {[%clk 0:00:52]}  gxf4 {[%clk 0:00:09]} 20. Qxe8+ {[%clk 0:00:52]}  Qd8 {[%clk 0:00:08]} 21. Qxd8+ {[%clk 0:00:49]}  Kxd8 {[%clk 0:00:09]} 22. Rxf4 {[%clk 0:00:49]}  Ndf6 {[%clk 0:00:08]} 23. Re1 {[%clk 0:00:45]}  Rg6 {[%clk 0:00:04]} 24. h3 {[%clk 0:00:43]}  Ng3+ {[%clk 0:00:03]} 25. Kh2 {[%clk 0:00:42]}  Nfh5 {[%clk 0:00:04]} 26. Rf3 {[%clk 0:00:39]}  Ne4 {[%clk 0:00:04]} 27. Rfe3 {[%clk 0:00:37]}  Nhg3 {[%clk 0:00:04]} 28. Nc5 {[%clk 0:00:33]}  Nxc5 {[%clk 0:00:02]} 29. dxc5 {[%clk 0:00:33]}  Nh5 {[%clk 0:00:00]} 30. g4 {[%clk 0:00:32]} 1-0


[Site "https://www.chess.com"]

[Event "Titled Tuesday Blitz June 27 Early 2023"]
[White "Kopczynski, Michal"]
[Black "Ovchinnikov, Vsevolod"]
[WhiteFideId "1124200"]
[BlackFideId "24176842"]
[WhiteElo "2410"]
[BlackElo "2589"]
[Result "0-1"]
[Round "4"]
[TimeControl "180+2"]
[Date "2023.06.27"]
[WhiteClock "0:00:08"]
[BlackClock "0:00:26"]
[Board "145"]

1. e4 {[%clk 0:03:00]}  g6 {[%clk 0:02:58]} 2. d4 {[%clk 0:03:00]}  Bg7 {[%clk 0:02:58]} 3. Nc3 {[%clk 0:03:01]}  a6 {[%clk 0:02:58]} 4. Be3 {[%clk 0:03:02]}  b5 {[%clk 0:02:59]} 5. Qd2 {[%clk 0:03:02]}  d6 {[%clk 0:03:00]} 6. O-O-O {[%clk 0:03:01]}  Nd7 {[%clk 0:03:00]} 7. h4 {[%clk 0:03:00]}  h5 {[%clk 0:03:01]} 8. f3 {[%clk 0:02:57]}  Bb7 {[%clk 0:03:01]} 9. Bd3 {[%clk 0:02:44]}  Rc8 {[%clk 0:03:01]} 10. g4 {[%clk 0:02:43]}  hxg4 {[%clk 0:02:59]} 11. fxg4 {[%clk 0:02:44]}  c5 {[%clk 0:02:59]} 12. d5 {[%clk 0:02:42]}  Qa5 {[%clk 0:02:53]} 13. Nb1 {[%clk 0:02:26]}  Qxa2 {[%clk 0:02:11]} 14. c3 {[%clk 0:02:25]}  Ngf6 {[%clk 0:02:12]} 15. g5 {[%clk 0:02:13]}  Ng4 {[%clk 0:02:12]} 16. Bf4 {[%clk 0:02:11]}  Nge5 {[%clk 0:02:05]} 17. Qe2 {[%clk 0:02:00]}  b4 {[%clk 0:01:56]} 18. h5 {[%clk 0:01:56]}  c4 {[%clk 0:01:13]} 19. Bc2 {[%clk 0:01:44]}  b3 {[%clk 0:01:13]} 20. Nf3 {[%clk 0:01:18]}  bxc2 {[%clk 0:01:08]} 21. Qxc2 {[%clk 0:01:18]}  Nxf3 {[%clk 0:01:05]} 22. hxg6 {[%clk 0:01:16]}  fxg6 {[%clk 0:00:47]} 23. Rxh8+ {[%clk 0:01:15]}  Bxh8 {[%clk 0:00:48]} 24. Rh1 {[%clk 0:01:12]}  Be5 {[%clk 0:00:40]} 25. Be3 {[%clk 0:01:03]}  Bg7 {[%clk 0:00:30]} 26. Qf2 {[%clk 0:00:24]}  Nde5 {[%clk 0:00:27]} 27. Kd1 {[%clk 0:00:08]}  Qxb1+ {[%clk 0:00:26]} 0-1


[Site "https://www.chess.com"]

[Event "Titled Tuesday Blitz June 27 Early 2023"]
[White "BenchGM"]
[Black "HamedWafa4"]
[WhiteElo "2410"]
[BlackElo "2588"]
[Result "0-1"]
[Round "4"]
[TimeControl "180+2"]
[Date "2023.06.27"]
[WhiteClock "0:00:05"]
[BlackClock "0:01:07"]
[Board "146"]

1. e4 {[%clk 0:03:00]}  e5 {[%clk 0:02:46]} 2. Nf3 {[%clk 0:03:00]}  Nc6 {[%clk 0:02:46]} 3. d4 {[%clk 0:03:00]}  exd4 {[%clk 0:02:47]} 4. Nxd4 {[%clk 0:03:00]}  Bc5 {[%clk 0:02:48]} 5. Nxc6 {[%clk 0:02:59]}  Qf6 {[%clk 0:02:48]} 6. Qf3 {[%clk 0:02:59]}  Qxf3 {[%clk 0:02:47]} 7. gxf3 {[%clk 0:02:58]}  dxc6 {[%clk 0:02:48]} 8. Be3 {[%clk 0:02:53]}  Bxe3 {[%clk 0:02:43]} 9. fxe3 {[%clk 0:02:53]}  Be6 {[%clk 0:02:44]} 10. Nc3 {[%clk 0:02:40]}  O-O-O {[%clk 0:02:43]} 11. Bd3 {[%clk 0:02:35]}  h5 {[%clk 0:02:40]} 12. Rg1 {[%clk 0:02:29]}  g6 {[%clk 0:02:37]} 13. O-O-O {[%clk 0:02:12]}  h4 {[%clk 0:02:34]} 14. f4 {[%clk 0:02:02]}  Nh6 {[%clk 0:02:23]} 15. Rde1 {[%clk 0:01:34]}  Bd7 {[%clk 0:02:07]} 16. Rg5 {[%clk 0:01:21]}  Ng4 {[%clk 0:01:57]} 17. f5 {[%clk 0:01:11]}  Nxh2 {[%clk 0:01:47]} 18. Be2 {[%clk 0:01:10]}  gxf5 {[%clk 0:01:47]} 19. exf5 {[%clk 0:01:08]}  Rdg8 {[%clk 0:01:47]} 20. Reg1 {[%clk 0:01:08]}  Rxg5 {[%clk 0:01:46]} 21. Rxg5 {[%clk 0:01:08]}  h3 {[%clk 0:01:45]} 22. Ne4 {[%clk 0:00:46]}  Kd8 {[%clk 0:01:37]} 23. Kd2 {[%clk 0:00:20]}  Ke7 {[%clk 0:01:35]} 24. f6+ {[%clk 0:00:17]}  Kf8 {[%clk 0:01:34]} 25. Ke1 {[%clk 0:00:16]}  Rg8 {[%clk 0:01:25]} 26. Rh5 {[%clk 0:00:14]}  Rg1+ {[%clk 0:01:16]} 27. Kf2 {[%clk 0:00:14]}  Rg2+ {[%clk 0:01:16]} 28. Ke1 {[%clk 0:00:14]}  Kg8 {[%clk 0:01:16]} 29. Nf2 {[%clk 0:00:12]}  Rg3 {[%clk 0:01:12]} 30. Kd2 {[%clk 0:00:11]}  Nf3+ {[%clk 0:01:12]} 31. Bxf3 {[%clk 0:00:11]}  Rxf3 {[%clk 0:01:13]} 32. Ke2 {[%clk 0:00:12]}  Rg3 {[%clk 0:01:12]} 33. Ne4 {[%clk 0:00:12]}  Bg4+ {[%clk 0:01:09]} 34. Kf2 {[%clk 0:00:11]}  Rg2+ {[%clk 0:01:08]} 35. Kf1 {[%clk 0:00:10]}  Bxh5 {[%clk 0:01:09]} 36. Nf2 {[%clk 0:00:08]}  Bf3 {[%clk 0:01:08]} 37. Nxh3 {[%clk 0:00:08]}  Rxc2 {[%clk 0:01:08]} 38. Ng5 {[%clk 0:00:08]}  Bg2+ {[%clk 0:01:07]} 39. Kg1 {[%clk 0:00:08]}  Bd5 {[%clk 0:01:08]} 40. e4 {[%clk 0:00:05]}  Bxa2 {[%clk 0:01:07]} 0-1


[Site "https://www.chess.com"]

[Event "Titled Tuesday Blitz June 27 Early 2023"]
[White "Pinheiro, Iung Alicio de O."]
[Black "Koepke, Christian"]
[WhiteFideId "2104350"]
[BlackFideId "4655737"]
[WhiteElo "2580"]
[BlackElo "2403"]
[Result "0-1"]
[Round "4"]
[TimeControl "180+2"]
[Date "2023.06.27"]
[WhiteClock "0:00:00"]
[BlackClock "0:00:33"]
[Board "147"]

1. d4 {[%clk 0:03:00]}  d5 {[%clk 0:02:59]} 2. c4 {[%clk 0:02:57]}  e5 {[%clk 0:02:59]} 3. dxe5 {[%clk 0:02:57]}  Ne7 {[%clk 0:03:00]} 4. Nf3 {[%clk 0:02:46]}  Nbc6 {[%clk 0:02:59]} 5. e3 {[%clk 0:02:39]}  Bg4 {[%clk 0:02:57]} 6. Nc3 {[%clk 0:02:29]}  Bxf3 {[%clk 0:02:49]} 7. gxf3 {[%clk 0:01:49]}  d4 {[%clk 0:02:29]} 8. Ne4 {[%clk 0:01:40]}  Nf5 {[%clk 0:02:26]} 9. f4 {[%clk 0:01:32]}  Bb4+ {[%clk 0:02:21]} 10. Ke2 {[%clk 0:01:19]}  Qh4 {[%clk 0:01:58]} 11. a3 {[%clk 0:00:43]}  O-O-O {[%clk 0:01:28]} 12. axb4 {[%clk 0:00:19]}  dxe3 {[%clk 0:01:24]} 13. Bxe3 {[%clk 0:00:06]}  Rxd1 {[%clk 0:01:01]} 14. Rxd1 {[%clk 0:00:07]}  Nxe5 {[%clk 0:00:49]} 15. fxe5 {[%clk 0:00:03]}  Qxe4 {[%clk 0:00:49]} 16. Bh3 {[%clk 0:00:04]}  Kb8 {[%clk 0:00:42]} 17. Bxf5 {[%clk 0:00:03]}  Qxf5 {[%clk 0:00:42]} 18. Rd4 {[%clk 0:00:01]}  Qxe5 {[%clk 0:00:37]} 19. Rhd1 {[%clk 0:00:02]}  b6 {[%clk 0:00:35]} 20. b5 {[%clk 0:00:02]}  Re8 {[%clk 0:00:33]} 21. b3 {[%clk 0:00:00]}  f5 {[%clk 0:00:33]} 0-1


[Site "https://www.chess.com"]

[Event "Titled Tuesday Blitz June 27 Early 2023"]
[White "Pinto, Daniel"]
[Black "Domingo Nunez, Ruben"]
[WhiteFideId "3303144"]
[BlackFideId "22245570"]
[WhiteElo "2402"]
[BlackElo "2574"]
[Result "0-1"]
[Round "4"]
[TimeControl "180+2"]
[Date "2023.06.27"]
[WhiteClock "0:00:00"]
[BlackClock "0:00:31"]
[Board "149"]

1. e4 {[%clk 0:03:00]}  Nf6 {[%clk 0:02:58]} 2. Nc3 {[%clk 0:02:58]}  d5 {[%clk 0:02:57]} 3. exd5 {[%clk 0:02:57]}  Nxd5 {[%clk 0:02:58]} 4. Bc4 {[%clk 0:02:41]}  Nxc3 {[%clk 0:02:54]} 5. Qf3 {[%clk 0:02:36]}  e6 {[%clk 0:02:49]} 6. dxc3 {[%clk 0:02:35]}  Qd6 {[%clk 0:02:44]} 7. Bf4 {[%clk 0:02:25]}  Qb6 {[%clk 0:02:42]} 8. Ne2 {[%clk 0:02:19]}  Nc6 {[%clk 0:02:36]} 9. O-O {[%clk 0:02:16]}  Bd7 {[%clk 0:02:36]} 10. b4 {[%clk 0:02:08]}  Bd6 {[%clk 0:02:28]} 11. Bxd6 {[%clk 0:01:30]}  cxd6 {[%clk 0:02:29]} 12. Qg3 {[%clk 0:01:29]}  Ne5 {[%clk 0:02:23]} 13. Bb3 {[%clk 0:01:25]}  O-O {[%clk 0:02:18]} 14. c4 {[%clk 0:01:24]}  Qxb4 {[%clk 0:02:16]} 15. Rad1 {[%clk 0:01:24]}  Rfd8 {[%clk 0:02:13]} 16. Rd4 {[%clk 0:01:21]}  Qc5 {[%clk 0:02:12]} 17. Rfd1 {[%clk 0:01:17]}  Bc6 {[%clk 0:02:13]} 18. h4 {[%clk 0:01:08]}  Rd7 {[%clk 0:02:11]} 19. h5 {[%clk 0:01:08]}  h6 {[%clk 0:02:12]} 20. f4 {[%clk 0:01:05]}  f5 {[%clk 0:01:57]} 21. Kf1 {[%clk 0:00:32]}  Ng4 {[%clk 0:01:57]} 22. c3 {[%clk 0:00:25]}  Rad8 {[%clk 0:01:55]} 23. Nc1 {[%clk 0:00:24]}  e5 {[%clk 0:01:52]} 24. fxe5 {[%clk 0:00:19]}  dxe5 {[%clk 0:01:52]} 25. Rxd7 {[%clk 0:00:20]}  Rxd7 {[%clk 0:01:51]} 26. Rxd7 {[%clk 0:00:19]}  Bxd7 {[%clk 0:01:52]} 27. Nd3 {[%clk 0:00:20]}  Qa5 {[%clk 0:01:50]} 28. c5+ {[%clk 0:00:20]}  Kh7 {[%clk 0:01:49]} 29. Nxe5 {[%clk 0:00:20]}  Qc7 {[%clk 0:01:42]} 30. Bc2 {[%clk 0:00:11]}  Nxe5 {[%clk 0:01:20]} 31. c6 {[%clk 0:00:11]}  bxc6 {[%clk 0:01:17]} 32. Qf4 {[%clk 0:00:09]}  Kg8 {[%clk 0:01:01]} 33. Bb3+ {[%clk 0:00:08]}  Kh8 {[%clk 0:01:01]} 34. Qd4 {[%clk 0:00:02]}  Be8 {[%clk 0:00:53]} 35. Ke2 {[%clk 0:00:02]}  Bxh5+ {[%clk 0:00:53]} 36. Kd2 {[%clk 0:00:02]}  Bf7 {[%clk 0:00:48]} 37. Bc2 {[%clk 0:00:01]}  Nc4+ {[%clk 0:00:44]} 38. Kc1 {[%clk 0:00:01]}  Qe5 {[%clk 0:00:36]} 39. Qd8+ {[%clk 0:00:01]}  Kh7 {[%clk 0:00:36]} 40. Qd1 {[%clk 0:00:00]}  Qe3+ {[%clk 0:00:31]} 0-1


[Site "https://www.chess.com"]

[Event "Titled Tuesday Blitz June 27 Early 2023"]
[White "Molina Carretero, Daniel"]
[Black "Skliarov, Viktor"]
[WhiteFideId "32071914"]
[BlackFideId "14106736"]
[WhiteElo "2399"]
[BlackElo "2572"]
[Result "1/2-1/2"]
[Round "4"]
[TimeControl "180+2"]
[Date "2023.06.27"]
[WhiteClock "0:00:47"]
[BlackClock "0:01:04"]
[Board "150"]

1. c4 {[%clk 0:03:00]}  e5 {[%clk 0:02:54]} 2. g3 {[%clk 0:03:01]}  Nf6 {[%clk 0:02:54]} 3. Bg2 {[%clk 0:03:01]}  c6 {[%clk 0:02:55]} 4. d4 {[%clk 0:02:57]}  exd4 {[%clk 0:02:55]} 5. Qxd4 {[%clk 0:02:52]}  Na6 {[%clk 0:02:56]} 6. Nf3 {[%clk 0:02:51]}  Bc5 {[%clk 0:02:55]} 7. Qd1 {[%clk 0:02:49]}  O-O {[%clk 0:02:54]} 8. Nc3 {[%clk 0:02:48]}  d5 {[%clk 0:02:41]} 9. cxd5 {[%clk 0:02:47]}  Nb4 {[%clk 0:02:42]} 10. Bg5 {[%clk 0:02:38]}  Bf5 {[%clk 0:02:29]} 11. e4 {[%clk 0:02:35]}  Bxe4 {[%clk 0:01:45]} 12. Nxe4 {[%clk 0:02:32]}  Re8 {[%clk 0:01:44]} 13. O-O {[%clk 0:02:23]}  Rxe4 {[%clk 0:01:42]} 14. dxc6 {[%clk 0:02:16]}  Qxd1 {[%clk 0:01:35]} 15. Raxd1 {[%clk 0:02:09]}  Nxc6 {[%clk 0:01:35]} 16. Bxf6 {[%clk 0:02:07]}  gxf6 {[%clk 0:01:35]} 17. Rd7 {[%clk 0:02:03]}  Re7 {[%clk 0:01:24]} 18. Rfd1 {[%clk 0:01:59]}  Rae8 {[%clk 0:01:24]} 19. Kf1 {[%clk 0:01:57]}  Rxd7 {[%clk 0:01:15]} 20. Rxd7 {[%clk 0:01:55]}  Re7 {[%clk 0:01:15]} 21. Rd5 {[%clk 0:01:43]}  Bb6 {[%clk 0:01:08]} 22. Nh4 {[%clk 0:01:43]}  Nd4 {[%clk 0:01:08]} 23. Nf5 {[%clk 0:01:30]}  Nxf5 {[%clk 0:01:07]} 24. Rxf5 {[%clk 0:01:31]}  Kg7 {[%clk 0:01:08]} 25. Bd5 {[%clk 0:01:14]}  Bd4 {[%clk 0:01:06]} 26. b3 {[%clk 0:01:09]}  b6 {[%clk 0:01:05]} 27. Rf4 {[%clk 0:01:02]}  Be5 {[%clk 0:01:05]} 28. Rg4+ {[%clk 0:01:02]}  Kf8 {[%clk 0:01:06]} 29. Rc4 {[%clk 0:01:02]}  Rd7 {[%clk 0:01:05]} 30. Be4 {[%clk 0:01:00]}  Kg7 {[%clk 0:01:04]} 31. Ke2 {[%clk 0:00:58]}  Rd4 {[%clk 0:01:03]} 32. Rxd4 {[%clk 0:00:53]}  Bxd4 {[%clk 0:01:04]} 33. h4 {[%clk 0:00:47]}  h6 {[%clk 0:01:04]} 1/2-1/2


[Site "https://www.chess.com"]

[Event "Titled Tuesday Blitz June 27 Early 2023"]
[White "Nozdrachev, Leonid"]
[Black "Oglaza, Oskar"]
[WhiteFideId "24113433"]
[BlackFideId "1194402"]
[WhiteElo "2570"]
[BlackElo "2396"]
[Result "1-0"]
[Round "4"]
[TimeControl "180+2"]
[Date "2023.06.27"]
[WhiteClock "0:00:10"]
[BlackClock "0:00:15"]
[Board "151"]

1. e4 {[%clk 0:02:58]}  c5 {[%clk 0:03:00]} 2. Nf3 {[%clk 0:02:57]}  d6 {[%clk 0:02:49]} 3. Bb5+ {[%clk 0:02:54]}  Nc6 {[%clk 0:02:48]} 4. O-O {[%clk 0:02:50]}  Bd7 {[%clk 0:02:39]} 5. Re1 {[%clk 0:02:50]}  a6 {[%clk 0:02:34]} 6. Bf1 {[%clk 0:02:49]}  Qc7 {[%clk 0:02:32]} 7. c3 {[%clk 0:02:49]}  Nf6 {[%clk 0:02:32]} 8. d4 {[%clk 0:02:48]}  cxd4 {[%clk 0:02:29]} 9. cxd4 {[%clk 0:02:49]}  e5 {[%clk 0:02:29]} 10. Nc3 {[%clk 0:02:44]}  Be7 {[%clk 0:02:28]} 11. Bg5 {[%clk 0:02:44]}  O-O {[%clk 0:02:14]} 12. Rc1 {[%clk 0:02:43]}  Qd8 {[%clk 0:02:07]} 13. d5 {[%clk 0:02:38]}  Nb8 {[%clk 0:02:05]} 14. h3 {[%clk 0:02:23]}  b5 {[%clk 0:02:03]} 15. b4 {[%clk 0:02:16]}  Ne8 {[%clk 0:01:57]} 16. Be3 {[%clk 0:02:12]}  f5 {[%clk 0:01:48]} 17. exf5 {[%clk 0:02:11]}  Bxf5 {[%clk 0:01:46]} 18. Bd3 {[%clk 0:02:11]}  Nd7 {[%clk 0:01:44]} 19. Bxf5 {[%clk 0:02:08]}  Rxf5 {[%clk 0:01:45]} 20. Ne4 {[%clk 0:02:07]}  Rc8 {[%clk 0:01:25]} 21. Qd3 {[%clk 0:02:03]}  h6 {[%clk 0:00:54]} 22. Rc6 {[%clk 0:01:57]}  Ndf6 {[%clk 0:00:39]} 23. Ng3 {[%clk 0:01:42]}  e4 {[%clk 0:00:38]} 24. Nxf5 {[%clk 0:01:25]}  exd3 {[%clk 0:00:36]} 25. Rxc8 {[%clk 0:01:24]}  Qd7 {[%clk 0:00:35]} 26. N3d4 {[%clk 0:00:56]}  Nxd5 {[%clk 0:00:26]} 27. Ra8 {[%clk 0:00:45]}  Kh7 {[%clk 0:00:18]} 28. Bd2 {[%clk 0:00:41]}  Nec7 {[%clk 0:00:16]} 29. Ra7 {[%clk 0:00:38]}  Bf6 {[%clk 0:00:17]} 30. Ne6 {[%clk 0:00:34]}  Qxe6 {[%clk 0:00:14]} 31. Rxe6 {[%clk 0:00:32]}  Nxe6 {[%clk 0:00:15]} 32. Rd7 {[%clk 0:00:26]}  Kg6 {[%clk 0:00:15]} 33. Nxd6 {[%clk 0:00:23]}  Nd4 {[%clk 0:00:15]} 34. Ne4 {[%clk 0:00:21]}  Ne2+ {[%clk 0:00:15]} 35. Kf1 {[%clk 0:00:21]}  Nec3 {[%clk 0:00:10]} 36. Nxf6 {[%clk 0:00:18]}  Nxf6 {[%clk 0:00:06]} 37. Rxd3 {[%clk 0:00:16]}  Nxa2 {[%clk 0:00:07]} 38. Ra3 {[%clk 0:00:14]}  Ne4 {[%clk 0:00:07]} 39. Rxa2 {[%clk 0:00:13]}  Kf5 {[%clk 0:00:08]} 40. Be3 {[%clk 0:00:13]}  Ke5 {[%clk 0:00:08]} 41. Rxa6 {[%clk 0:00:12]}  Kd5 {[%clk 0:00:09]} 42. Ra7 {[%clk 0:00:12]}  Kc4 {[%clk 0:00:09]} 43. Rxg7 {[%clk 0:00:11]}  Kxb4 {[%clk 0:00:10]} 44. Rg4 {[%clk 0:00:09]}  Kc3 {[%clk 0:00:11]} 45. Rxe4 {[%clk 0:00:09]}  b4 {[%clk 0:00:12]} 46. Bd2+ {[%clk 0:00:09]}  Kd3 {[%clk 0:00:12]} 47. Rxb4 {[%clk 0:00:08]}  h5 {[%clk 0:00:12]} 48. Rh4 {[%clk 0:00:08]}  Kc2 {[%clk 0:00:13]} 49. Be3 {[%clk 0:00:08]}  Kd1 {[%clk 0:00:14]} 50. Rxh5 {[%clk 0:00:09]}  Kc2 {[%clk 0:00:15]} 51. Rd5 {[%clk 0:00:09]}  Kb3 {[%clk 0:00:14]} 52. Rd4 {[%clk 0:00:10]}  Ka2 {[%clk 0:00:14]} 53. Ke2 {[%clk 0:00:11]}  Kb1 {[%clk 0:00:13]} 54. Kd3 {[%clk 0:00:12]}  Ka2 {[%clk 0:00:14]} 55. Kc3 {[%clk 0:00:11]}  Kb1 {[%clk 0:00:14]} 56. Rd1+ {[%clk 0:00:10]}  Ka2 {[%clk 0:00:15]} 57. Rc1 {[%clk 0:00:10]}  Ka3 {[%clk 0:00:15]} 58. Ra1# {[%clk 0:00:10]} 1-0


[Site "https://www.chess.com"]

[Event "Titled Tuesday Blitz June 27 Early 2023"]
[White "Mendez Fortes, Eduardo Jesus"]
[Black "Barbot, Pierre"]
[WhiteFideId "3502376"]
[BlackFideId "663727"]
[WhiteElo "2566"]
[BlackElo "2385"]
[Result "1-0"]
[Round "4"]
[TimeControl "180+2"]
[Date "2023.06.27"]
[WhiteClock "0:01:35"]
[BlackClock "0:00:00"]
[Board "152"]

1. e4 {[%clk 0:03:00]}  c6 {[%clk 0:02:59]} 2. d4 {[%clk 0:03:00]}  d5 {[%clk 0:02:59]} 3. e5 {[%clk 0:03:01]}  c5 {[%clk 0:02:59]} 4. dxc5 {[%clk 0:03:01]}  e6 {[%clk 0:02:58]} 5. a3 {[%clk 0:03:00]}  Bxc5 {[%clk 0:02:57]} 6. b4 {[%clk 0:03:01]}  Be7 {[%clk 0:02:56]} 7. Bb2 {[%clk 0:03:00]}  f6 {[%clk 0:02:56]} 8. Nf3 {[%clk 0:02:59]}  Nc6 {[%clk 0:02:41]} 9. Bd3 {[%clk 0:02:59]}  Nh6 {[%clk 0:02:13]} 10. O-O {[%clk 0:02:57]}  O-O {[%clk 0:02:13]} 11. Nbd2 {[%clk 0:02:56]}  Nxe5 {[%clk 0:02:05]} 12. Nxe5 {[%clk 0:02:55]}  fxe5 {[%clk 0:02:05]} 13. Bxe5 {[%clk 0:02:55]}  Bd6 {[%clk 0:01:55]} 14. Bxd6 {[%clk 0:02:44]}  Qxd6 {[%clk 0:01:54]} 15. c4 {[%clk 0:02:44]}  Kh8 {[%clk 0:01:37]} 16. cxd5 {[%clk 0:02:42]}  exd5 {[%clk 0:01:36]} 17. Nf3 {[%clk 0:02:39]}  Bg4 {[%clk 0:01:32]} 18. Be2 {[%clk 0:02:39]}  Rae8 {[%clk 0:01:28]} 19. Re1 {[%clk 0:02:37]}  Nf5 {[%clk 0:01:17]} 20. Qd3 {[%clk 0:02:32]}  Bxf3 {[%clk 0:01:00]} 21. Bxf3 {[%clk 0:02:32]}  d4 {[%clk 0:00:49]} 22. Rxe8 {[%clk 0:02:30]}  Rxe8 {[%clk 0:00:45]} 23. Qxf5 {[%clk 0:02:30]}  d3 {[%clk 0:00:45]} 24. Qf7 {[%clk 0:02:02]}  Qe5 {[%clk 0:00:40]} 25. Rf1 {[%clk 0:02:02]}  d2 {[%clk 0:00:36]} 26. Qd7 {[%clk 0:01:54]}  Qe1 {[%clk 0:00:34]} 27. g3 {[%clk 0:01:54]}  h6 {[%clk 0:00:23]} 28. Qxb7 {[%clk 0:01:46]}  Rd8 {[%clk 0:00:18]} 29. Qxa7 {[%clk 0:01:41]}  Qe5 {[%clk 0:00:04]} 30. Qe3 {[%clk 0:01:39]}  Qb2 {[%clk 0:00:02]} 31. Rd1 {[%clk 0:01:35]}  Qc2 {[%clk 0:00:00]} 32. Kg2 {[%clk 0:01:35]} 1-0


[Site "https://www.chess.com"]